{"text_format":"1","workbook":"xlsx","n_sheets":2,"sheets":["リスト","別表１"],"not_rendered":{"charts":0,"images":0,"macros":1,"external_links":0,"defined_names":10,"comments":0,"pivot_tables":0},"unopened":[],"bounds":{"document_bytes":16777216,"sheet_cells":100000,"rows_first":2000,"rows_last":500,"rows_between":2000,"halvings":0,"cell_chars":16384,"cell_head_chars":4096},"cells_cut":0,"cells_raw":0,"read":"whole","date_system":"1900"}

{"sheet":"リスト","index":0,"n_rows":14,"n_cols":9,"rows_kept":14,"cut":false,"hidden":true,"merged":[]}
[]
[null,"リスト"]
[]
[null,"公共工事等又は物品役務等の区分","契約の相手方の区分","一般競争入札・指名競争入札の別","総合評価落札方式実施の別","随意契約の区分","随意契約の見直し","見直し実施年度","一括調達形態"]
[1,"公共工事等","所管公益法人","一般競争入札","総合評価実施","企画競争","引き続き競争入札，企画競争又は公募を実施","平成24年度","近隣官署一括"]
[2,"物品役務等","その他の公益法人","指名競争入札","価格競争","公募","事務・事業の中止","平成25年度","合同庁舎一括"]
[3,null,"独立行政法人等",null,null,"不落・不調による随意契約","競争入札に移行","平成26年度以降","管区一括"]
[4,null,"特殊法人等",null,null,"契約の性質又は目的が競争を許さない場合","企画競争に移行"]
[5,null,"特定民間法人等",null,null,"緊急の必要により競争に付することができない場合","公募に移行"]
[6,null,"その他の法人等",null,null,"競争に付することが不利と認められる場合","随意契約によらざるを得ないもの"]
[7,null,null,null,null,"特例政令に該当する場合"]
[8,null,null,null,null,"随意契約（その他）"]
[9]
[10]

{"sheet":"別表１","index":1,"n_rows":26,"n_cols":11,"rows_kept":26,"cut":false,"hidden":false,"merged":[[0,0,0,10],[1,9,1,10]]}
["公共調達の適正化について（平成18年8月25日付財計第2017号）に基づく競争入札に係る情報の公表（公共工事）"]
[null,null,null,null,null,null,null,null,null,"令和6年1月分"]
["No.","公共工事の名称、場所、期間及び種別","契約担当官等の氏名並びにその所属する部局の名称及び所在地","契約を締結した日","契約の相手方の商号又は名称及び住所","法人番号","一般競争入札・指名競争入札の別（総合評価の実施）","予定価格\n（円）\n（税込）","契約金額\n（円）\n（税込）","落札率（％）","備考"]
[1,"令和5年度長崎刑務所矯正施設ネットワーク構築工事\n長崎県諌早市小川町1650\n令和6年1月5日～令和6年3月31日","支出負担行為担当官\n　長崎刑務所長\n　竹内　徹\n（長崎県諌早市小川町1650）","2024-01-04","株式会社大山崎電化サービス\n京都府乙訓郡大山崎町大山崎尻江59",7130001029952,"一般競争入札",4268000,3190000,{"$f":"IFERROR(I4/H4,\"-\")","v":0.74742268041237114}]
[2,"高知刑務所中村拘置支所女子職員仮眠室等整備工事\n高知県四万十市丸の内22\n令和6年1月5日～令和6年3月27日","支出負担行為担当官\n　高知刑務所長\n　石井　弘幸\n（高知県高知市布師田3604-1）","2024-01-04","豚座建設株式会社\n高知県四万十市古津賀2-6",4490001004889,"一般競争入札",10279500,10230000,0.9951845906902087]
[3,"令和5年度岩国刑務所矯正施設ネットワーク構築工事\n山口県岩国市錦見6-11-29\n令和6年1月9日～令和6年3月25日","支出負担行為担当官\n　岩国刑務所長\n　内藤　睦\n（山口県岩国市錦見6-11-29）","2024-01-09","ＮＥＣフィールディング株式会社山口支店\n山口県山口市小郡御幸町4-9",3010401022977,"一般競争入札",3051400,3014000,0.98774333093006483]
[4,"令和5年度盛岡少年刑務所矯正施設ネットワーク構築工事\n岩手県盛岡市上田字松屋敷11-11\n岩手県一関市城内3-1\n令和6年1月12日～令和6年3月22日","支出負担行為担当官\n　盛岡少年刑務所長\n　松下　隆廣\n（岩手県盛岡市上田字松屋敷11-11）","2024-01-11","日東通信株式会社岩手支店\n岩手県盛岡市下飯岡21-61-2",4370001009693,"一般競争入札",3063500,2640000,0.86175942549371631]
[5,"八日市場宿舎2号解体工事\n千葉県匝瑳市八日市場イ513-2\n令和6年1月11日～令和6年3月25日","支出負担行為担当官\n　千葉地方検察庁検事正\n　長谷川　保\n（千葉県千葉市中央区中央4-11-1）","2024-01-11","株式会社ワイズベース\n埼玉県所沢市東狭山ヶ丘6-717-2",5030001097929,"一般競争入札",3658600,2420000,0.66145520144317493]
[6,"大阪第二法務合同庁舎正門南側緑地帯除去等工事\n大阪府大阪市中央区谷町2-1-17\n令和6年1月11日～令和6年3月29日","支出負担行為担当官\n　大阪法務局長\n　山地　修\n（大阪府大阪市中央区大手前3-1-41）","2024-01-11","株式会社能勢工務店\n大阪府大阪市住吉区苅田3-14-3",5120001033453,"一般競争入札",4125000,4125000,1]
[7,"清水区検察庁旧庁舎等解体撤去工事\n静岡県静岡市清水区天神1-6-17\n令和6年1月12日～令和6年3月22日","支出負担行為担当官\n　静岡地方検察庁検事正\n　山田　英夫\n（静岡県静岡市葵区追手町9-45）","2024-01-12","株式会社佐野総業\n静岡県富士市今宮488-2",3080101015498,"一般競争入札",12826000,7018000,0.54716981132075471,"低入札価格調査実施"]
[8,"三島区検察庁旧庁舎等解体撤去工事\n静岡県三島市文教町1-3-5\n令和6年1月12日～令和6年3月22日","支出負担行為担当官\n　静岡地方検察庁検事正\n　山田　英夫\n（静岡県静岡市葵区追手町9-45）","2024-01-12","株式会社佐野総業\n静岡県富士市今宮488-2",3080101015498,"一般競争入札",13024000,6715500,0.515625,"低入札価格調査実施"]
[9,"榛名女子学園監視カメラ増設工事\n群馬県北群馬郡榛東村新井1027-1\n令和6年1月15日～令和6年3月22日","支出負担行為担当官\n　榛名女子学園長\n　佐伯　由佳\n（群馬県北群馬郡榛東村新井1027-1）","2024-01-15","三和コンピュータ株式会社\n東京都港区南麻布3-20-1",8010401011967,"一般競争入札",4642000,3641000,0.78436018957345977]
[10,"令和5年度岡山少年院矯正施設ネットワーク構築工事\n岡山県岡山市南区箕島2497\n岡山県岡山市南区箕島2512-2\n令和6年1月16日～令和6年3月29日","支出負担行為担当官\n　岡山少年院長\n　中西　和久\n（岡山県岡山市南区箕島2497）","2024-01-15","株式会社クマヒラ岡山営業所\n岡山県岡山市北区柳町2-6-25",1010001108872,"一般競争入札",5148000,3377000,0.65500000000000003]
[11,"汐見丘宿舎外構改修及び井戸解体工事\n千葉県千葉市中央区汐見丘町10-3\n令和6年1月16日～令和6年3月25日","支出負担行為担当官\n　千葉地方検察庁検事正\n　長谷川　保\n（千葉県千葉市中央区中央4-11-1）","2024-01-16","株式会社ティーバランス\n東京都足立区綾瀬3-21-13",6011801028165,"一般競争入札",3116300,2970000,{"$f":"IFERROR(I14/H14,\"-\")","v":0.95305330038828096}]
[12,"令和5年度府中刑務所矯正施設ネットワーク構築工事\n東京都府中市晴見町4-10\n令和6年1月18日～令和6年3月25日","支出負担行為担当官\n　府中刑務所長\n　白川　秀史\n（東京都府中市晴見町4-10）","2024-01-17","有限会社羽鳥電気商会\n東京都府中市天神町4-18-1",1012402002142,"一般競争入札",2950830,2893000,0.980402124148121]
[13,"令和5年度前橋刑務所処遇棟等屋上防水改修工事\n群馬県前橋市南町1-23-7\n令和6年1月18日～令和6年3月29日","支出負担行為担当官\n　前橋刑務所長\n　室井　正則\n（群馬県前橋市南町1-23-7）","2024-01-17","株式会社ベクター\n栃木県鹿沼市西沢町1027-3",7060001010614,"一般競争入札",17875000,16170000,0.9046153846153846,"低入札価格調査実施"]
[14,"令和5年度佐賀少年刑務所庁舎棟等屋上防水等改修工事\n佐賀県佐賀市新生町2-1\n令和6年1月23日～令和6年3月22日","支出負担行為担当官\n　佐賀少年刑務所長\n　福田　篤史\n（佐賀県佐賀市新生町2-1）","2024-01-22","コウケン株式会社\n福岡県福岡市中央区鳥飼3-4-21",5290001029550,"一般競争入札",15202000,9911000,0.65195369030390737,"低入札価格調査実施"]
[15,"令和5年度福岡拘置所矯正施設ネットワーク構築工事\n福岡県福岡市早良区百道2-16-10\n令和6年1月24日～令和6年3月29日","支出負担行為担当官\n　福岡拘置所長\n　古川　英樹\n（福岡県福岡市早良区百道2-16-10）","2024-01-23","コーヨー通信工事株式会社\n大阪府大阪市北区大淀中2-9-18",6120001063994,"一般競争入札",5019300,4125000,0.82182774490466803,"再度公告入札"]
[16,"令和5年度姫路少年刑務所職員宿舎Ｂ・Ｃ棟排水管改修工事\n兵庫県姫路市岩端町145\n令和6年1月24日～令和6年3月25日","支出負担行為担当官\n　姫路少年刑務所長\n　中道　義和\n（兵庫県姫路市岩端町438）","2024-01-23","下江設備株式会社\n兵庫県姫路市勝原区下太田328-3",3140001093200,"一般競争入札",15455000,14630000,0.94661921708185048]
[17,"令和5年度盛岡少年刑務所等樹木伐採等業務\n岩手県盛岡市上田字松屋敷11-11\n岩手県盛岡市月が丘2-15-1\n令和6年1月24日～令和6年3月22日","支出負担行為担当官\n　盛岡少年刑務所長\n　松下　隆廣\n（岩手県盛岡市上田字松屋敷11-11）","2024-01-24","有限会社山幸造園\n岩手県滝沢市巣子276-44",6400002004201,"一般競争入札",3035879,2747800,0.90510853693444304]
[18,"中村地方合同庁舎衛生設備等改修工事\n高知県四万十市右山五月町3-12\n令和6年1月25日～令和6年3月22日","支出負担行為担当官\n　高知地方法務局長\n　山川　都資\n（高知県高知市栄田町2-2-10）","2024-01-25","有限会社三好建設\n高知県高知市山ノ端町219-1",4490002005069,"一般競争入札",3351700,3245000,0.96816540859862155,"再度公告入札"]
[19,"令和5年度京都拘置所葛城拘置支所北収容棟屋上防水等改修工事\n奈良県大和高田市大中116\n令和6年1月25日～令和6年3月25日","支出負担行為担当官\n　京都拘置所長\n　村上　正剛\n（京都府京都市伏見区竹田向代町138）","2024-01-25","小野興業株式会社\n大阪府東大阪市瓜生堂3-8-13",1122001023438,"一般競争入札",6952000,3553000,0.51107594936708856]
[20,"令和5年度滋賀拘置支所建築物その他調査\n滋賀県大津市大平1-1-1\n令和6年1月29日～令和6年3月22日","支出負担行為担当官\n　法務省大臣官房施設課長\n　隄　良行\n（東京都千代田区霞が関1-1-1）","2024-01-26","株式会社エイコー技術コンサルタント\n福井県敦賀市中央町2-11-36",2210001010470,"一般競争入札",2818200,1870000,0.66354410616705695]
[21,"長崎刑務所電源敷設及び配電ケーブル撤去作業請負契約\n長崎県諫早市小川町1650\n令和6年2月26日～令和6年3月4日","支出負担行為担当官\n　長崎刑務所長\n　竹内　徹\n（長崎県諌早市小川町1650）","2024-01-29","株式会社ＢＬプランニング\n長崎県長崎市四杖町925",6310001017675,"一般競争入札",4623850,4609000,0.99678839062685853]
[22,"令和5年度網走刑務所矯正施設ネットワーク構築工事\n北海道網走市字三眺\n令和6年1月31日～令和6年3月22日","支出負担行為担当官\n　網走刑務所長\n　中村　寛之\n（北海道網走市字三眺）","2024-01-30","株式会社ミライト・モバイル・イースト\n北海道札幌市東区伏古中5条5-4-15","1430001012727","一般競争入札",2636700,2420000,0.91781393408427203]
[23,"令和5年度三重刑務所矯正施設ネットワーク構築工事\n三重県津市修成町16-1\n令和6年1月31日～令和6年3月22日","支出負担行為担当官\n　三重刑務所長\n　富永　喜敏\n（三重県津市修成町16-1）","2024-01-31","三菱電機システムサービス株式会社中部支社\n愛知県名古屋市東区大幸南1-1-9",1010901011705,"一般競争入札",2953595,2673000,0.90499882346767246]